[Event "Titled Tuesday Blitz January 17 Early 2023"]
[White "Ibadov, Dashgyn"]
[Black "Murzin, Volodar"]
[WhiteFideId "24107514"]
[BlackFideId "44155573"]
[WhiteElo "2391"]
[BlackElo "2604"]
[Result "0-1"]
[Round "02"]
[TimeControl "180+2"]
[Date "2023.01.17"]
[WhiteClock "0:00:05"]
[BlackClock "0:00:44"]

1. e4 {[%clk 0:03:00]}  c5 {[%clk 0:02:56]} 2. Nf3 {[%clk 0:03:00]}  d6 {[%clk 0:02:56]} 3. d4 {[%clk 0:02:55]}  cxd4 {[%clk 0:02:57]} 4. Nxd4 {[%clk 0:02:56]}  Nf6 {[%clk 0:02:57]} 5. Nc3 {[%clk 0:02:56]}  a6 {[%clk 0:02:57]} 6. Bg5 {[%clk 0:02:54]}  Nbd7 {[%clk 0:02:56]} 7. f4 {[%clk 0:02:54]}  Qc7 {[%clk 0:02:48]} 8. Qf3 {[%clk 0:02:53]}  h6 {[%clk 0:02:45]} 9. Bxf6 {[%clk 0:02:48]}  Nxf6 {[%clk 0:02:44]} 10. f5 {[%clk 0:02:48]}  Qc5 {[%clk 0:02:40]} 11. O-O-O {[%clk 0:02:47]}  g5 {[%clk 0:02:39]} 12. fxg6 {[%clk 0:02:34]}  Bg4 {[%clk 0:02:37]} 13. gxf7+ {[%clk 0:02:35]}  Kxf7 {[%clk 0:02:38]} 14. Qd3 {[%clk 0:02:19]}  Bxd1 {[%clk 0:02:37]} 15. Nxd1 {[%clk 0:02:20]}  e6 {[%clk 0:02:16]} 16. g3 {[%clk 0:02:11]}  Bg7 {[%clk 0:02:03]} 17. Bh3 {[%clk 0:01:57]}  Rhe8 {[%clk 0:02:03]} 18. Ne3 {[%clk 0:01:23]}  Re7 {[%clk 0:01:46]} 19. Rf1 {[%clk 0:01:03]}  Rae8 {[%clk 0:01:42]} 20. Kb1 {[%clk 0:00:39]}  Kg8 {[%clk 0:01:38]} 21. Rd1 {[%clk 0:00:19]}  Nd7 {[%clk 0:01:28]} 22. Nxe6 {[%clk 0:00:10]}  Rxe6 {[%clk 0:01:16]} 23. Qb3 {[%clk 0:00:11]}  Nf8 {[%clk 0:01:11]} 24. Nd5 {[%clk 0:00:04]}  Qb5 {[%clk 0:00:54]} 25. Qxb5 {[%clk 0:00:01]}  axb5 {[%clk 0:00:54]} 26. Bxe6+ {[%clk 0:00:02]}  Nxe6 {[%clk 0:00:54]} 27. a3 {[%clk 0:00:01]}  Nc5 {[%clk 0:00:48]} 28. Nf4 {[%clk 0:00:01]}  Nxe4 {[%clk 0:00:47]} 29. c3 {[%clk 0:00:02]}  Bxc3 {[%clk 0:00:45]} 30. Rd5 {[%clk 0:00:01]}  b4 {[%clk 0:00:41]} 31. axb4 {[%clk 0:00:01]}  Be5 {[%clk 0:00:38]} 32. Rb5 {[%clk 0:00:01]}  Bxf4 {[%clk 0:00:38]} 33. gxf4 {[%clk 0:00:02]}  Re7 {[%clk 0:00:39]} 34. Kc2 {[%clk 0:00:02]}  Kg7 {[%clk 0:00:40]} 35. Kd3 {[%clk 0:00:02]}  Nf6 {[%clk 0:00:40]} 36. f5 {[%clk 0:00:02]}  Rc7 {[%clk 0:00:38]} 37. Rb6 {[%clk 0:00:02]}  Rd7 {[%clk 0:00:38]} 38. Kd4 {[%clk 0:00:03]}  Kf7 {[%clk 0:00:39]} 39. h4 {[%clk 0:00:03]}  Ke7 {[%clk 0:00:40]} 40. Rb5 {[%clk 0:00:03]}  Rc7 {[%clk 0:00:40]} 41. Ra5 {[%clk 0:00:03]}  Kd7 {[%clk 0:00:41]} 42. Ra8 {[%clk 0:00:04]}  Rc8 {[%clk 0:00:41]} 43. Ra7 {[%clk 0:00:04]}  Kc7 {[%clk 0:00:42]} 44. Ra3 {[%clk 0:00:02]}  Re8 {[%clk 0:00:42]} 45. Rg3 {[%clk 0:00:03]}  Re4+ {[%clk 0:00:42]} 46. Kc3 {[%clk 0:00:03]}  Rxh4 {[%clk 0:00:43]} 47. Rg7+ {[%clk 0:00:03]}  Kc6 {[%clk 0:00:43]} 48. Rg6 {[%clk 0:00:04]}  Nd5+ {[%clk 0:00:42]} 49. Kb3 {[%clk 0:00:05]}  Rxb4+ {[%clk 0:00:43]} 50. Ka3 {[%clk 0:00:05]}  Rf4 {[%clk 0:00:43]} 51. Rxh6 {[%clk 0:00:05]}  Rxf5 {[%clk 0:00:44]} 0-1


[Site "https://www.chess.com"]

[Event "Titled Tuesday Blitz January 17 Early 2023"]
[White "Bagwe Gaurang"]
[Black "Arjun, Kalyan"]
[WhiteFideId "45039895"]
[BlackFideId "35018701"]
[WhiteElo "2067"]
[BlackElo "2516"]
[Result "0-1"]
[Round "02"]
[TimeControl "180+2"]
[Date "2023.01.17"]
[WhiteClock "0:01:10"]
[BlackClock "0:02:25"]

1. e4 {[%clk 0:03:00]}  c5 {[%clk 0:02:58]} 2. Nf3 {[%clk 0:02:57]}  d6 {[%clk 0:02:58]} 3. d4 {[%clk 0:02:56]}  cxd4 {[%clk 0:02:59]} 4. Nxd4 {[%clk 0:02:51]}  Nf6 {[%clk 0:02:59]} 5. Nc3 {[%clk 0:02:51]}  Nc6 {[%clk 0:02:59]} 6. Bg5 {[%clk 0:02:45]}  e6 {[%clk 0:02:59]} 7. Qd2 {[%clk 0:02:44]}  a6 {[%clk 0:02:59]} 8. f4 {[%clk 0:02:42]}  h6 {[%clk 0:02:55]} 9. Bh4 {[%clk 0:02:36]}  Nxe4 {[%clk 0:02:46]} 10. Nxe4 {[%clk 0:02:10]}  Qxh4+ {[%clk 0:02:44]} 11. g3 {[%clk 0:02:10]}  Qd8 {[%clk 0:02:43]} 12. O-O-O {[%clk 0:02:10]}  d5 {[%clk 0:02:39]} 13. Nxc6 {[%clk 0:01:27]}  bxc6 {[%clk 0:02:40]} 14. f5 {[%clk 0:01:27]}  Be7 {[%clk 0:02:35]} 15. fxe6 {[%clk 0:01:13]}  Bxe6 {[%clk 0:02:27]} 16. Nc3 {[%clk 0:01:10]}  Bg5 {[%clk 0:02:25]} 0-1


[Site "https://www.chess.com"]

[Event "Titled Tuesday Blitz January 17 Early 2023"]
[White "Eynullayev, Atilla"]
[Black "Maksimovic, Bojan"]
[WhiteFideId "13413570"]
[BlackFideId "14408120"]
[WhiteElo "2281"]
[BlackElo "2486"]
[Result "0-1"]
[Round "02"]
[TimeControl "180+2"]
[Date "2023.01.17"]
[WhiteClock "0:00:06"]
[BlackClock "0:00:07"]

1. d4 {[%clk 0:03:00]}  Nf6 {[%clk 0:02:55]} 2. c4 {[%clk 0:02:59]}  g6 {[%clk 0:02:54]} 3. Nc3 {[%clk 0:02:59]}  Bg7 {[%clk 0:02:55]} 4. e4 {[%clk 0:02:59]}  d6 {[%clk 0:02:55]} 5. Be2 {[%clk 0:02:59]}  Nbd7 {[%clk 0:02:52]} 6. Be3 {[%clk 0:02:57]}  e5 {[%clk 0:02:52]} 7. d5 {[%clk 0:02:58]}  h5 {[%clk 0:02:51]} 8. Nf3 {[%clk 0:02:52]}  Bh6 {[%clk 0:02:38]} 9. Bxh6 {[%clk 0:02:51]}  Rxh6 {[%clk 0:02:39]} 10. Qd2 {[%clk 0:02:50]}  Rh8 {[%clk 0:02:38]} 11. Ng5 {[%clk 0:02:51]}  Kf8 {[%clk 0:02:29]} 12. h4 {[%clk 0:02:51]}  Nh7 {[%clk 0:02:26]} 13. g3 {[%clk 0:02:49]}  Kg7 {[%clk 0:02:23]} 14. O-O-O {[%clk 0:02:44]}  a5 {[%clk 0:02:00]} 15. f4 {[%clk 0:02:44]}  Nxg5 {[%clk 0:01:53]} 16. hxg5 {[%clk 0:02:44]}  f6 {[%clk 0:01:52]} 17. gxf6+ {[%clk 0:02:22]}  Qxf6 {[%clk 0:01:53]} 18. Rdf1 {[%clk 0:02:20]}  Nc5 {[%clk 0:01:45]} 19. Rh2 {[%clk 0:02:15]}  Bd7 {[%clk 0:01:37]} 20. Rhf2 {[%clk 0:02:15]}  Raf8 {[%clk 0:01:34]} 21. Qe3 {[%clk 0:02:09]}  b6 {[%clk 0:01:21]} 22. fxe5 {[%clk 0:01:40]}  Qxe5 {[%clk 0:01:19]} 23. Rxf8 {[%clk 0:01:41]}  Rxf8 {[%clk 0:01:19]} 24. Rxf8 {[%clk 0:01:40]}  Kxf8 {[%clk 0:01:20]} 25. Qh6+ {[%clk 0:01:41]}  Kf7 {[%clk 0:01:17]} 26. Bf3 {[%clk 0:01:18]}  Qg7 {[%clk 0:01:14]} 27. Qf4+ {[%clk 0:01:18]}  Qf6 {[%clk 0:01:08]} 28. Qe3 {[%clk 0:01:17]}  Qe5 {[%clk 0:01:01]} 29. Ne2 {[%clk 0:01:16]}  Kg7 {[%clk 0:00:53]} 30. Nf4 {[%clk 0:01:00]}  Be8 {[%clk 0:00:44]} 31. Ne2 {[%clk 0:00:45]}  g5 {[%clk 0:00:41]} 32. Nd4 {[%clk 0:00:39]}  Bg6 {[%clk 0:00:39]} 33. Nc6 {[%clk 0:00:33]}  Qxg3 {[%clk 0:00:36]} 34. Qd4+ {[%clk 0:00:25]}  Kh7 {[%clk 0:00:15]} 35. Qf6 {[%clk 0:00:21]}  Qf4+ {[%clk 0:00:08]} 36. Qxf4 {[%clk 0:00:21]}  gxf4 {[%clk 0:00:09]} 37. Nd4 {[%clk 0:00:17]}  Kh6 {[%clk 0:00:07]} 38. Ne6 {[%clk 0:00:17]}  Bxe4 {[%clk 0:00:05]} 39. Bxe4 {[%clk 0:00:08]}  Nxe4 {[%clk 0:00:06]} 40. Nxc7 {[%clk 0:00:09]}  f3 {[%clk 0:00:06]} 41. Kd1 {[%clk 0:00:10]}  h4 {[%clk 0:00:06]} 42. Ke1 {[%clk 0:00:05]}  h3 {[%clk 0:00:06]} 43. Kf1 {[%clk 0:00:06]}  h2 {[%clk 0:00:07]} 0-1


[Site "https://www.chess.com"]

[Event "Titled Tuesday Blitz January 17 Early 2023"]
[White "Martin Carmona, Gaston Manuel"]
[Black "Cherniaiev, Tykhon"]
[WhiteFideId "22284567"]
[BlackFideId "14182360"]
[WhiteElo "2333"]
[BlackElo "2330"]
[Result "0-1"]
[Round "02"]
[TimeControl "180+2"]
[Date "2023.01.17"]
[WhiteClock "0:00:27"]
[BlackClock "0:00:05"]

1. e4 {[%clk 0:02:58]}  e5 {[%clk 0:02:57]} 2. Nf3 {[%clk 0:02:53]}  Nc6 {[%clk 0:02:57]} 3. Bc4 {[%clk 0:02:53]}  Nf6 {[%clk 0:02:57]} 4. d3 {[%clk 0:02:53]}  Bc5 {[%clk 0:02:56]} 5. c3 {[%clk 0:02:53]}  O-O {[%clk 0:02:52]} 6. O-O {[%clk 0:02:53]}  d5 {[%clk 0:02:52]} 7. exd5 {[%clk 0:02:53]}  Nxd5 {[%clk 0:02:53]} 8. Re1 {[%clk 0:02:53]}  Be6 {[%clk 0:02:52]} 9. b4 {[%clk 0:02:49]}  Bb6 {[%clk 0:02:49]} 10. a4 {[%clk 0:02:50]}  a6 {[%clk 0:02:49]} 11. a5 {[%clk 0:02:50]}  Ba7 {[%clk 0:02:49]} 12. Nbd2 {[%clk 0:02:43]}  Nxc3 {[%clk 0:02:34]} 13. Qc2 {[%clk 0:02:43]}  Nd5 {[%clk 0:02:30]} 14. Ba3 {[%clk 0:02:42]}  Re8 {[%clk 0:02:24]} 15. Ne4 {[%clk 0:02:42]}  Ndxb4 {[%clk 0:02:04]} 16. Qb3 {[%clk 0:02:32]}  Nd5 {[%clk 0:01:56]} 17. Bc5 {[%clk 0:02:20]}  b6 {[%clk 0:01:26]} 18. axb6 {[%clk 0:02:17]}  Bxb6 {[%clk 0:01:20]} 19. Bxb6 {[%clk 0:01:55]}  cxb6 {[%clk 0:01:19]} 20. Neg5 {[%clk 0:01:55]}  b5 {[%clk 0:01:06]} 21. Nxe6 {[%clk 0:01:54]}  fxe6 {[%clk 0:01:05]} 22. Bxd5 {[%clk 0:01:45]}  exd5 {[%clk 0:00:54]} 23. Rac1 {[%clk 0:01:44]}  Qd6 {[%clk 0:00:49]} 24. Nd2 {[%clk 0:01:34]}  Nd4 {[%clk 0:00:47]} 25. Qa2 {[%clk 0:01:35]}  Rac8 {[%clk 0:00:43]} 26. Ne4 {[%clk 0:01:33]}  Qe6 {[%clk 0:00:31]} 27. Nc5 {[%clk 0:01:31]}  Qd6 {[%clk 0:00:24]} 28. Ne4 {[%clk 0:01:31]}  Qd7 {[%clk 0:00:17]} 29. Nc5 {[%clk 0:01:31]}  Qf7 {[%clk 0:00:17]} 30. Qxa6 {[%clk 0:01:30]}  Rf8 {[%clk 0:00:16]} 31. Qa2 {[%clk 0:01:24]}  Kh8 {[%clk 0:00:16]} 32. Rxe5 {[%clk 0:01:17]}  Ne6 {[%clk 0:00:13]} 33. Nb3 {[%clk 0:01:04]}  Nf4 {[%clk 0:00:09]} 34. Re3 {[%clk 0:00:54]}  Qg6 {[%clk 0:00:05]} 35. Rg3 {[%clk 0:00:48]}  Qe6 {[%clk 0:00:05]} 36. Kh1 {[%clk 0:00:27]}  Rxc1+ {[%clk 0:00:05]} 0-1


[Site "https://www.chess.com"]

[Event "Titled Tuesday Blitz January 17 Early 2023"]
[White "Lortkipanidze, Nodar"]
[Black "Kopczynski, Michal"]
[WhiteFideId "13604058"]
[BlackFideId "1124200"]
[WhiteElo "2406"]
[BlackElo "2225"]
[Result "1-0"]
[Round "02"]
[TimeControl "180+2"]
[Date "2023.01.17"]
[WhiteClock "0:01:43"]
[BlackClock "0:00:46"]

1. e4 {[%clk 0:03:00]}  c5 {[%clk 0:02:59]} 2. c3 {[%clk 0:03:00]}  d5 {[%clk 0:02:59]} 3. exd5 {[%clk 0:03:01]}  Qxd5 {[%clk 0:03:00]} 4. d4 {[%clk 0:03:02]}  cxd4 {[%clk 0:03:01]} 5. cxd4 {[%clk 0:03:01]}  Nc6 {[%clk 0:03:01]} 6. Nf3 {[%clk 0:03:00]}  Bg4 {[%clk 0:03:02]} 7. Be3 {[%clk 0:03:00]}  e6 {[%clk 0:03:00]} 8. Nc3 {[%clk 0:03:00]}  Bb4 {[%clk 0:03:00]} 9. Be2 {[%clk 0:03:00]}  Nge7 {[%clk 0:02:54]} 10. O-O {[%clk 0:02:59]}  Bxc3 {[%clk 0:02:54]} 11. bxc3 {[%clk 0:03:00]}  O-O {[%clk 0:02:55]} 12. h3 {[%clk 0:02:59]}  Bf5 {[%clk 0:02:53]} 13. Qb3 {[%clk 0:02:56]}  Rac8 {[%clk 0:02:41]} 14. c4 {[%clk 0:02:50]}  Qd7 {[%clk 0:02:35]} 15. Rac1 {[%clk 0:02:50]}  Rfd8 {[%clk 0:02:28]} 16. Rfd1 {[%clk 0:02:50]}  h6 {[%clk 0:02:20]} 17. Ne5 {[%clk 0:02:28]}  Nxe5 {[%clk 0:01:45]} 18. dxe5 {[%clk 0:02:29]}  Qc7 {[%clk 0:01:42]} 19. Bxa7 {[%clk 0:02:29]}  Qxe5 {[%clk 0:01:37]} 20. Be3 {[%clk 0:02:18]}  Be4 {[%clk 0:01:28]} 21. Qb6 {[%clk 0:02:07]}  Rxd1+ {[%clk 0:01:24]} 22. Rxd1 {[%clk 0:02:08]}  Nf5 {[%clk 0:01:21]} 23. Bf1 {[%clk 0:01:56]}  Bc6 {[%clk 0:01:14]} 24. Bc1 {[%clk 0:01:51]}  Ra8 {[%clk 0:00:59]} 25. Bb2 {[%clk 0:01:48]}  Qe4 {[%clk 0:00:56]} 26. a3 {[%clk 0:01:41]}  Nh4 {[%clk 0:00:51]} 27. Rd8+ {[%clk 0:01:41]}  Rxd8 {[%clk 0:00:45]} 28. Qxd8+ {[%clk 0:01:42]}  Kh7 {[%clk 0:00:46]} 29. Bd3 {[%clk 0:01:43]} 1-0


[Site "https://www.chess.com"]

[Event "Titled Tuesday Blitz January 17 Early 2023"]
[White "Bozorov, Makhsum"]
[Black "Harshavardhan G B"]
[WhiteFideId "14201330"]
[BlackFideId "25059009"]
[WhiteElo "2145"]
[BlackElo "2408"]
[Result "0-1"]
[Round "02"]
[TimeControl "180+2"]
[Date "2023.01.17"]
[WhiteClock "0:00:05"]
[BlackClock "0:00:15"]

1. d4 {[%clk 0:02:56]}  Nf6 {[%clk 0:02:57]} 2. c4 {[%clk 0:02:54]}  g6 {[%clk 0:02:56]} 3. Nf3 {[%clk 0:02:52]}  Bg7 {[%clk 0:02:55]} 4. g3 {[%clk 0:02:52]}  O-O {[%clk 0:02:55]} 5. Bg2 {[%clk 0:02:53]}  c6 {[%clk 0:02:53]} 6. O-O {[%clk 0:02:53]}  d5 {[%clk 0:02:53]} 7. cxd5 {[%clk 0:02:53]}  cxd5 {[%clk 0:02:52]} 8. Ne5 {[%clk 0:02:54]}  Nc6 {[%clk 0:02:51]} 9. Nxc6 {[%clk 0:02:53]}  bxc6 {[%clk 0:02:50]} 10. Nc3 {[%clk 0:02:54]}  Re8 {[%clk 0:02:47]} 11. Na4 {[%clk 0:02:52]}  Nd7 {[%clk 0:02:45]} 12. Be3 {[%clk 0:02:50]}  Nb6 {[%clk 0:02:37]} 13. Rc1 {[%clk 0:02:27]}  Bd7 {[%clk 0:02:17]} 14. Nc5 {[%clk 0:01:31]}  Nc4 {[%clk 0:02:14]} 15. Nxd7 {[%clk 0:01:14]}  Qxd7 {[%clk 0:02:11]} 16. Bf4 {[%clk 0:00:58]}  Nxb2 {[%clk 0:02:04]} 17. Qc2 {[%clk 0:00:49]}  Nc4 {[%clk 0:02:02]} 18. Rfd1 {[%clk 0:00:44]}  e6 {[%clk 0:01:53]} 19. e4 {[%clk 0:00:43]}  a5 {[%clk 0:01:50]} 20. h4 {[%clk 0:00:38]}  h5 {[%clk 0:01:49]} 21. Qe2 {[%clk 0:00:29]}  Ra7 {[%clk 0:01:42]} 22. Rb1 {[%clk 0:00:28]}  Rb7 {[%clk 0:01:40]} 23. Qd3 {[%clk 0:00:28]}  Rb5 {[%clk 0:01:22]} 24. a4 {[%clk 0:00:24]}  Rb4 {[%clk 0:01:19]} 25. Rxb4 {[%clk 0:00:20]}  axb4 {[%clk 0:01:19]} 26. Qb3 {[%clk 0:00:21]}  Bf8 {[%clk 0:01:18]} 27. exd5 {[%clk 0:00:16]}  cxd5 {[%clk 0:01:16]} 28. Ra1 {[%clk 0:00:16]}  Na5 {[%clk 0:01:14]} 29. Qd1 {[%clk 0:00:14]}  Rc8 {[%clk 0:01:13]} 30. g4 {[%clk 0:00:13]}  hxg4 {[%clk 0:00:41]} 31. Qxg4 {[%clk 0:00:14]}  Bg7 {[%clk 0:00:41]} 32. h5 {[%clk 0:00:14]}  gxh5 {[%clk 0:00:40]} 33. Qxh5 {[%clk 0:00:12]}  b3 {[%clk 0:00:35]} 34. Qg4 {[%clk 0:00:08]}  f5 {[%clk 0:00:20]} 35. Qd1 {[%clk 0:00:06]}  Rc4 {[%clk 0:00:18]} 36. Bf1 {[%clk 0:00:05]}  Rxd4 {[%clk 0:00:17]} 37. Qe1 {[%clk 0:00:05]}  Rxf4 {[%clk 0:00:16]} 38. Qxa5 {[%clk 0:00:06]}  Bxa1 {[%clk 0:00:16]} 39. Qa8+ {[%clk 0:00:06]}  Kh7 {[%clk 0:00:15]} 40. Qf8 {[%clk 0:00:05]}  Qg7+ {[%clk 0:00:15]} 0-1


[Site "https://www.chess.com"]

[Event "Titled Tuesday Blitz January 17 Early 2023"]
[White "Wartiovaara, Oliver"]
[Black "Mahdavi, Reza"]
[WhiteFideId "513024"]
[BlackFideId "12595926"]
[WhiteElo "2264"]
[BlackElo "2339"]
[Result "0-1"]
[Round "02"]
[TimeControl "180+2"]
[Date "2023.01.17"]
[WhiteClock "0:00:33"]
[BlackClock "0:01:43"]

1. e4 {[%clk 0:02:54]}  c5 {[%clk 0:02:57]} 2. Nf3 {[%clk 0:02:54]}  e6 {[%clk 0:02:58]} 3. d4 {[%clk 0:02:48]}  cxd4 {[%clk 0:02:59]} 4. Nxd4 {[%clk 0:02:49]}  Nc6 {[%clk 0:02:59]} 5. Nb5 {[%clk 0:02:49]}  Nf6 {[%clk 0:02:49]} 6. N1c3 {[%clk 0:02:41]}  Bb4 {[%clk 0:02:49]} 7. a3 {[%clk 0:02:40]}  Bxc3+ {[%clk 0:02:49]} 8. Nxc3 {[%clk 0:02:41]}  O-O {[%clk 0:02:49]} 9. Qd6 {[%clk 0:02:40]}  Qa5 {[%clk 0:02:39]} 10. Bd3 {[%clk 0:02:37]}  a6 {[%clk 0:02:25]} 11. O-O {[%clk 0:02:35]}  b5 {[%clk 0:02:23]} 12. b4 {[%clk 0:02:22]}  Qb6 {[%clk 0:02:18]} 13. Be3 {[%clk 0:02:21]}  Qb8 {[%clk 0:02:16]} 14. Qxb8 {[%clk 0:02:12]}  Rxb8 {[%clk 0:02:16]} 15. Bf4 {[%clk 0:02:01]}  e5 {[%clk 0:02:04]} 16. Bg5 {[%clk 0:02:00]}  d6 {[%clk 0:02:05]} 17. Bxf6 {[%clk 0:02:00]}  gxf6 {[%clk 0:02:06]} 18. Nd5 {[%clk 0:02:00]}  Kg7 {[%clk 0:02:06]} 19. c4 {[%clk 0:01:50]}  Be6 {[%clk 0:02:05]} 20. cxb5 {[%clk 0:01:46]}  axb5 {[%clk 0:02:06]} 21. Nc7 {[%clk 0:01:36]}  Nd4 {[%clk 0:02:06]} 22. Rac1 {[%clk 0:01:21]}  Rfc8 {[%clk 0:01:59]} 23. Rc3 {[%clk 0:01:20]}  Bc4 {[%clk 0:01:56]} 24. Nd5 {[%clk 0:01:01]}  Bxd5 {[%clk 0:01:46]} 25. Rxc8 {[%clk 0:01:01]}  Rxc8 {[%clk 0:01:47]} 26. exd5 {[%clk 0:01:02]}  Rc3 {[%clk 0:01:48]} 27. Bxb5 {[%clk 0:00:52]}  Nxb5 {[%clk 0:01:47]} 28. a4 {[%clk 0:00:52]}  Nc7 {[%clk 0:01:47]} 29. b5 {[%clk 0:00:47]}  Rb3 {[%clk 0:01:42]} 30. g4 {[%clk 0:00:40]}  Rb4 {[%clk 0:01:40]} 31. Ra1 {[%clk 0:00:40]}  Rxg4+ {[%clk 0:01:41]} 32. Kf1 {[%clk 0:00:40]}  Rb4 {[%clk 0:01:42]} 33. Ke2 {[%clk 0:00:36]}  f5 {[%clk 0:01:42]} 34. Kd3 {[%clk 0:00:37]}  e4+ {[%clk 0:01:42]} 35. Ke3 {[%clk 0:00:36]}  Nxd5+ {[%clk 0:01:42]} 36. Kd2 {[%clk 0:00:36]}  Kf6 {[%clk 0:01:42]} 37. Kc2 {[%clk 0:00:35]}  Ke5 {[%clk 0:01:42]} 38. Ra3 {[%clk 0:00:34]}  Kd4 {[%clk 0:01:42]} 39. a5 {[%clk 0:00:32]}  Rxb5 {[%clk 0:01:43]} 40. a6 {[%clk 0:00:32]}  Rb8 {[%clk 0:01:42]} 41. a7 {[%clk 0:00:33]}  Ra8 {[%clk 0:01:43]} 0-1


[Site "https://www.chess.com"]

[Event "Titled Tuesday Blitz January 17 Early 2023"]
[White "Mohammed, Dilshad"]
[Black "Wagh Suyog"]
[WhiteFideId "5050421"]
[BlackFideId "25071688"]
[WhiteElo "2103"]
[BlackElo "2313"]
[Result "1/2-1/2"]
[Round "02"]
[TimeControl "180+2"]
[Date "2023.01.17"]
[WhiteClock "0:00:13"]
[BlackClock "0:00:10"]

1. Nf3 {[%clk 0:02:55]}  d5 {[%clk 0:02:58]} 2. d4 {[%clk 0:02:53]}  Nf6 {[%clk 0:02:58]} 3. Bf4 {[%clk 0:02:52]}  c5 {[%clk 0:02:57]} 4. c3 {[%clk 0:02:52]}  Nc6 {[%clk 0:02:41]} 5. e3 {[%clk 0:02:48]}  Qb6 {[%clk 0:02:40]} 6. b3 {[%clk 0:02:43]}  Bg4 {[%clk 0:02:25]} 7. Nbd2 {[%clk 0:02:42]}  e6 {[%clk 0:02:12]} 8. h3 {[%clk 0:02:41]}  Bh5 {[%clk 0:02:10]} 9. Be2 {[%clk 0:02:41]}  Be7 {[%clk 0:02:09]} 10. Ne5 {[%clk 0:02:37]}  Bxe2 {[%clk 0:02:07]} 11. Qxe2 {[%clk 0:02:38]}  O-O {[%clk 0:02:08]} 12. O-O {[%clk 0:02:37]}  Rac8 {[%clk 0:02:07]} 13. Rfc1 {[%clk 0:02:27]}  Rfd8 {[%clk 0:01:58]} 14. Ndf3 {[%clk 0:02:24]}  Ne4 {[%clk 0:01:53]} 15. Nxc6 {[%clk 0:02:24]}  bxc6 {[%clk 0:01:53]} 16. Nd2 {[%clk 0:02:18]}  Nf6 {[%clk 0:01:38]} 17. Be5 {[%clk 0:02:17]}  a5 {[%clk 0:01:34]} 18. dxc5 {[%clk 0:02:13]}  Qxc5 {[%clk 0:01:31]} 19. c4 {[%clk 0:02:12]}  Qa7 {[%clk 0:01:30]} 20. Rab1 {[%clk 0:01:58]}  a4 {[%clk 0:01:20]} 21. b4 {[%clk 0:01:42]}  Nd7 {[%clk 0:01:08]} 22. Bg3 {[%clk 0:01:33]}  Bf6 {[%clk 0:01:07]} 23. b5 {[%clk 0:01:25]}  cxb5 {[%clk 0:01:05]} 24. cxb5 {[%clk 0:01:21]}  Qb6 {[%clk 0:01:01]} 25. e4 {[%clk 0:01:00]}  Nc5 {[%clk 0:00:54]} 26. exd5 {[%clk 0:00:56]}  exd5 {[%clk 0:00:54]} 27. Qf3 {[%clk 0:00:50]}  h6 {[%clk 0:00:48]} 28. Bf4 {[%clk 0:00:49]}  Bd4 {[%clk 0:00:39]} 29. Be3 {[%clk 0:00:41]}  Bxe3 {[%clk 0:00:36]} 30. Qxe3 {[%clk 0:00:42]}  d4 {[%clk 0:00:29]} 31. Qf3 {[%clk 0:00:37]}  Ne6 {[%clk 0:00:29]} 32. Nc4 {[%clk 0:00:34]}  Qc5 {[%clk 0:00:28]} 33. b6 {[%clk 0:00:31]}  d3 {[%clk 0:00:28]} 34. b7 {[%clk 0:00:31]}  Rb8 {[%clk 0:00:28]} 35. Nd2 {[%clk 0:00:28]}  Qa5 {[%clk 0:00:26]} 36. Rd1 {[%clk 0:00:20]}  Qa6 {[%clk 0:00:24]} 37. Ne4 {[%clk 0:00:18]}  Nd4 {[%clk 0:00:21]} 38. Qe3 {[%clk 0:00:14]}  Ne2+ {[%clk 0:00:21]} 39. Kh1 {[%clk 0:00:14]}  Nc3 {[%clk 0:00:19]} 40. Nxc3 {[%clk 0:00:13]}  Rxb7 {[%clk 0:00:18]} 41. Rxb7 {[%clk 0:00:13]}  Qxb7 {[%clk 0:00:19]} 42. Rxd3 {[%clk 0:00:13]}  Rc8 {[%clk 0:00:19]} 43. Qd2 {[%clk 0:00:11]}  Qa8 {[%clk 0:00:16]} 44. Ne2 {[%clk 0:00:10]}  a3 {[%clk 0:00:17]} 45. Ng3 {[%clk 0:00:09]}  Rb8 {[%clk 0:00:16]} 46. Rc3 {[%clk 0:00:08]}  Rb2 {[%clk 0:00:16]} 47. Rc2 {[%clk 0:00:08]}  Qb8 {[%clk 0:00:16]} 48. Qc1 {[%clk 0:00:06]}  Rb1 {[%clk 0:00:16]} 49. Rc8+ {[%clk 0:00:05]}  Kh7 {[%clk 0:00:15]} 50. Rxb8 {[%clk 0:00:05]}  Rxc1+ {[%clk 0:00:16]} 51. Kh2 {[%clk 0:00:06]}  Rc2 {[%clk 0:00:17]} 52. Ra8 {[%clk 0:00:06]}  Rxa2 {[%clk 0:00:17]} 53. Ne4 {[%clk 0:00:06]}  f5 {[%clk 0:00:15]} 54. Nc3 {[%clk 0:00:05]}  Rxf2 {[%clk 0:00:13]} 55. Rxa3 {[%clk 0:00:05]}  f4 {[%clk 0:00:14]} 56. Kg1 {[%clk 0:00:05]}  Rd2 {[%clk 0:00:13]} 57. Ne4 {[%clk 0:00:05]}  Re2 {[%clk 0:00:14]} 58. Nf2 {[%clk 0:00:05]}  Re1+ {[%clk 0:00:13]} 59. Kh2 {[%clk 0:00:05]}  Re2 {[%clk 0:00:14]} 60. Ng4 {[%clk 0:00:05]}  h5 {[%clk 0:00:12]} 61. Nf2 {[%clk 0:00:02]}  Rxf2 {[%clk 0:00:12]} 62. Ra5 {[%clk 0:00:02]}  Kh6 {[%clk 0:00:12]} 63. Kg1 {[%clk 0:00:03]}  Rc2 {[%clk 0:00:12]} 64. Kf1 {[%clk 0:00:04]}  Rc4 {[%clk 0:00:09]} 65. Rb5 {[%clk 0:00:04]}  Rc2 {[%clk 0:00:09]} 66. Kg1 {[%clk 0:00:04]}  Ra2 {[%clk 0:00:08]} 67. Kf1 {[%clk 0:00:04]}  g5 {[%clk 0:00:08]} 68. Rb6+ {[%clk 0:00:04]}  Kg7 {[%clk 0:00:07]} 69. Rb7+ {[%clk 0:00:05]}  Kf6 {[%clk 0:00:08]} 70. Rb6+ {[%clk 0:00:06]}  Ke7 {[%clk 0:00:07]} 71. Rb5 {[%clk 0:00:06]}  Kf6 {[%clk 0:00:04]} 72. Rb6+ {[%clk 0:00:07]}  Kf7 {[%clk 0:00:04]} 73. Rb5 {[%clk 0:00:08]}  g4 {[%clk 0:00:04]} 74. Rxh5 {[%clk 0:00:07]}  Ra1+ {[%clk 0:00:02]} 75. Kf2 {[%clk 0:00:07]}  g3+ {[%clk 0:00:03]} 76. Kf3 {[%clk 0:00:08]}  Rf1+ {[%clk 0:00:02]} 77. Kg4 {[%clk 0:00:08]}  Kg6 {[%clk 0:00:02]} 78. Rg5+ {[%clk 0:00:08]}  Kh6 {[%clk 0:00:02]} 79. Rf5 {[%clk 0:00:09]}  Rf2 {[%clk 0:00:03]} 80. Rxf4 {[%clk 0:00:08]}  Rxg2 {[%clk 0:00:03]} 81. Rf6+ {[%clk 0:00:08]}  Kg7 {[%clk 0:00:03]} 82. Rf3 {[%clk 0:00:09]}  Rg1 {[%clk 0:00:04]} 83. Rxg3 {[%clk 0:00:08]}  Rxg3+ {[%clk 0:00:05]} 84. Kxg3 {[%clk 0:00:09]}  Kg6 {[%clk 0:00:06]} 85. Kg4 {[%clk 0:00:10]}  Kh7 {[%clk 0:00:07]} 86. h4 {[%clk 0:00:11]}  Kh8 {[%clk 0:00:08]} 87. h5 {[%clk 0:00:12]}  Kh7 {[%clk 0:00:08]} 88. h6 {[%clk 0:00:13]}  Kh8 {[%clk 0:00:09]} 89. h7 {[%clk 0:00:13]}  Kxh7 {[%clk 0:00:10]} 1/2-1/2


[Site "https://www.chess.com"]